[Event "Bhopal GM Open 2018"]
[Site "Bhopal"]
[Date "2018.12.27"]
[Round "9"]
[White "Sahoo, Utkal Ranjan"]
[Black "Khusenkhojaev, Muhammad"]
[Result "1-0"]
[ECO "D27"]
[WhiteElo "2286"]
[BlackElo "2455"]
[Annotator "RC"]
[PlyCount "85"]
[EventDate "2018.12.21"]
[EventType "swiss"]
[EventCountry "IND"]
[SourceTitle "playchess.com"]
[Source "ChessBase"]
[SourceQuality "1"]
[TimeControl "5400+30"]

1. d4 {[%emt 0:00:00]} d5 {[%emt 0:02:26]} 2. c4 {[%emt 0:00:00]} dxc4 {[%emt 0:00:09]} 3. Nf3 {[%emt 0:00:22]} Nf6 {[%emt 0:00:10]} 4. e3 {[%emt 0:00:41]} e6 {[%emt 0:00:17]} 5. Bxc4 {[%emt 0:00:12]} c5 {[%emt 0:00:07]} 6. O-O {[%emt 0:00:12]} a6 {[%emt 0:00:07]} 7. dxc5 {[%emt 0:00:44]} Qxd1 {[%emt 0:00:14]} 8. Rxd1 {[%emt 0:00:04]} Bxc5 {[%emt 0:00:07]} 9. Be2 {[%emt 0:05:07]} O-O {[%emt 0:03:38]} 10. Nbd2 Rd8 {[%emt 0:07:04]} 11. Nb3 {[%emt 0:04:18]} Rxd1+ {[%emt 0:00:16]} 12. Bxd1 {[%emt 0:00:02]} Bd6 {[%emt 0:02:58]} 13. Nfd2 {[%emt 0:07:58]} Nbd7 {[%emt 0:26:43]} 14. Nc4 {[%emt 0:07:50]} Be7 {[%emt 0:00:12]} 15. Bf3 {[%emt 0:01:06]} e5 {[%emt 0:01:08]} 16. Bd2 {[%emt 0:02:01]} e4 {[%emt 0:00:43]} 17. Be2 {[%emt 0:00:20]} b6 {[%emt 0:00:53]} 18. Rc1 {[%emt 0:04:46]} Bf8 {[%emt 0:08:18]} 19. Bc3 {[%emt 0:04:19]} Nd5 {[%emt 0:00:18]} 20. Bd4 {[%emt 0:00:22]} a5 {[%emt 0:09:16]} 21. a4 {[%emt 0:04:38]} f5 {[%emt 0:06:35]} 22. f3 {[%emt 0:05:09]} Nc5 {[%emt 0:02:00]} 23. Nxb6 {[%emt 0:05:32]} Nxb3 {[%emt 0:04:28]} 24. Bc4 {[%emt 0:00:31]} Nxc1 {[%emt 0:01:20]} 25. Bxd5+ {[%emt 0:00:06]} Kh8 {[%emt 0:00:03]} 26. Bxa8 {[%emt 0:00:24]} Ne2+ {[%emt 0:00:16]} 27. Kf2 {[%emt 0:00:19]} Nxd4 {[%emt 0:00:07]} 28. exd4 {[%emt 0:01:05]} Be6 {[%emt 0:00:17]} 29. fxe4 {[%emt 0:00:11]} fxe4 {[%emt 0:00:05]} 30. Bxe4 {[%emt 0:00:07]} Bd6 {[%emt 0:00:36]} 31. Bd5 {[%emt 0:02:36]} Bc7 {[%emt 0:00:39]} 32. Na8 {[%emt 0:01:18]} Bxd5 {[%emt 0:00:25]} 33. Nxc7 {[%emt 0:00:05]} Bb3 {[%emt 0:00:04]} 34. d5 {[%emt 0:01:45]} Kg8 {[%emt 0:00:06]} 35. Ke3 {[%emt 0:00:12]} Kf7 {[%emt 0:00:17]} 36. Kd4 {[%emt 0:00:08]} Bxa4 {[%emt 0:00:28]} 37. Kc5 {[%emt 0:00:11]} Bc2 {[%emt 0:00:27]} 38. d6 {[%emt 0:00:13]} g5 {[%emt 0:00:43]} 39. Nd5 {[%emt 0:00:18]} Ke6 {[%emt 0:00:16]} 40. Nb6 {[%emt 0:00:17]} Be4 {[%emt 0:00:31]} 41. g3 {[%emt 0:00:07]} h5 {[%emt 0:00:30]} 42. Nc4 {[%emt 0:00:05]} a4 {[%emt 0:01:31]} 43. Nb6 {[%emt 0:00:04]} 1-0

[Event "Bhopal GM Open 2018"]
[Site "Bhopal"]
[Date "2018.12.27"]
[Round "9"]
[White "Gajwa Ankit"]
[Black "Rathnakaran, K.."]
[Result "1/2-1/2"]
[ECO "B06"]
[WhiteElo "2253"]
[BlackElo "2366"]
[Annotator "RC"]
[PlyCount "122"]
[EventDate "2018.12.21"]
[EventType "swiss"]
[EventCountry "IND"]
[SourceTitle "playchess.com"]
[Source "ChessBase"]
[SourceQuality "1"]
[TimeControl "5400+30"]

1. e4 {[%emt 0:00:00]} g6 {[%emt 0:00:00]} 2. d4 {[%emt 0:00:00]} d6 {[%emt 0:00:00]} 3. Nc3 {[%emt 0:00:21]} c6 {[%emt 0:00:00]} 4. Nf3 {[%emt 0:01:08]} Qc7 {[%emt 0:00:00]} 5. Be2 {[%emt 0:01:25]} Bg7 {[%emt 0:00:06]} 6. O-O {[%emt 0:02:54]} Nd7 {[%emt 0:00:17]} 7. a4 {[%emt 0:03:58]} Ngf6 {[%emt 0:00:24]} 8. Be3 {[%emt 0:05:27]} O-O {[%emt 0:00:18]} 9. Nd2 {[%emt 0:00:26]} e5 10. dxe5 {[%emt 0:06:41]} dxe5 {[%emt 0:01:38]} 11. Nc4 {[%emt 0:03:01]} Ne8 {[%emt 0:00:21]} 12. a5 {[%emt 0:04:40]} f5 {[%emt 0:00:23]} 13. exf5 {[%emt 0:03:28]} gxf5 {[%emt 0:00:06]} 14. f4 {[%emt 0:00:11]} e4 {[%emt 0:00:14]} 15. Bd4 {[%emt 0:01:24]} Bxd4+ {[%emt 0:02:29]} 16. Qxd4 {[%emt 0:00:10]} Ndf6 {[%emt 0:00:04]} 17. Ne3 {[%emt 0:07:28]} Ng7 {[%emt 0:01:34]} 18. Bc4+ {[%emt 0:05:38]} Kh8 {[%emt 0:00:09]} 19. Qc5 {[%emt 0:06:51]} Nd7 {[%emt 0:05:28]} 20. Qd4 {[%emt 0:06:10]} Nf6 {[%emt 0:04:17]} 21. Ne2 {[%emt 0:10:16]} c5 {[%emt 0:05:45]} 22. Qc3 {[%emt 0:01:57]} Bd7 {[%emt 0:00:07]} 23. Ng3 {[%emt 0:01:58]} Rae8 {[%emt 0:02:45]} 24. Rad1 {[%emt 0:01:55]} b5 {[%emt 0:02:46]} 25. axb6 {[%emt 0:00:15]} axb6 {[%emt 0:00:05]} 26. Be2 {[%emt 0:04:30]} Be6 {[%emt 0:02:52]} 27. Bb5 {[%emt 0:06:29]} Rc8 {[%emt 0:05:28]} 28. b3 {[%emt 0:01:13]} h5 {[%emt 0:05:51]} 29. Ne2 {[%emt 0:04:45]} Kh7 {[%emt 0:02:33]} 30. Rd2 {[%emt 0:04:47]} Qe7 {[%emt 0:05:25]} 31. Rfd1 {[%emt 0:03:03]} Rcd8 {[%emt 0:00:12]} 32. Bc4 {[%emt 0:01:09]} Rxd2 {[%emt 0:03:35]} 33. Qxd2 {[%emt 0:00:59]} Bxc4 {[%emt 0:00:26]} 34. Nxc4 {[%emt 0:00:21]} b5 {[%emt 0:01:33]} 35. Ne3 {[%emt 0:00:21]} Ng4 {[%emt 0:03:34]} 36. h3 {[%emt 0:01:09]} Nxe3 {[%emt 0:00:19]} 37. Qxe3 {[%emt 0:00:04]} Ne6 {[%emt 0:02:46]} 38. Rd5 {[%emt 0:00:33]} b4 {[%emt 0:02:41]} 39. Rxf5 {[%emt 0:01:39]} Rxf5 {[%emt 0:00:45]} 40. Qxe4 {[%emt 0:00:05]} Qf6 {[%emt 0:04:17]} 41. g4 {[%emt 0:00:40]} Ng7 {[%emt 0:00:08]} 42. Ng3 {[%emt 0:00:44]} hxg4 {[%emt 0:01:16]} 43. hxg4 {[%emt 0:00:05]} Qg6 {[%emt 0:01:11]} 44. Nxf5 {[%emt 0:00:47]} Qxg4+ {[%emt 0:00:05]} 45. Ng3+ {[%emt 0:00:07]} Kg8 {[%emt 0:02:37]} 46. Kf2 {[%emt 0:00:06]} Ne6 {[%emt 0:00:21]} 47. Ne2 {[%emt 0:00:19]} Kf7 {[%emt 0:02:37]} 48. Ke3 {[%emt 0:00:27]} Kf6 {[%emt 0:05:38]} 49. Qe5+ {[%emt 0:01:07]} Kg6 {[%emt 0:00:11]} 50. Kd3 {[%emt 0:01:11]} Qf5+ {[%emt 0:05:25]} 51. Qxf5+ {[%emt 0:00:29]} Kxf5 {[%emt 0:00:04]} 52. Kc4 {[%emt 0:00:26]} Ke4 {[%emt 0:00:24]} 53. f5 {[%emt 0:00:37]} Kxf5 {[%emt 0:00:14]} 54. Kd5 {[%emt 0:00:10]} Kf6 {[%emt 0:00:22]} 55. Kd6 {[%emt 0:00:20]} Kf7 {[%emt 0:00:21]} 56. Ke5 {[%emt 0:00:15]} Ke7 {[%emt 0:00:19]} 57. Kd5 {[%emt 0:01:02]} Kd7 {[%emt 0:00:34]} 58. Nc1 {[%emt 0:00:43]} Nd4 {[%emt 0:00:12]} 59. Nd3 {[%emt 0:00:25]} Nxc2 {[%emt 0:00:06]} 60. Kxc5 {[%emt 0:00:11]} Na1 {[%emt 0:00:06]} 61. Kxb4 {[%emt 0:00:04]} Nxb3 {[%emt 0:00:05]} 1/2-1/2

[Event "Bhopal GM Open 2018"]
[Site "Bhopal"]
[Date "2018.12.27"]
[Round "9"]
[White "Md.abzid, Rahman"]
[Black "Laxman, R.R."]
[Result "0-1"]
[ECO "E15"]
[WhiteElo "2040"]
[BlackElo "2436"]
[Annotator "NA RC"]
[PlyCount "52"]
[EventDate "2018.12.21"]
[EventType "swiss"]
[EventCountry "IND"]
[SourceTitle "playchess.com"]
[Source "ChessBase"]
[SourceQuality "1"]
[TimeControl "5400+30"]

{[%evp 8,42,8,12,8,16,32767,32767,32767,32767,32767,32767,32767,32767,-29,-55,-19,32767,32767,32767,32767,32767,-42,-141,-146,-135,-125,-134,-104,-143,-140,-153,32767,-224,32767,-193,-181]} 1. d4 {[%emt 0:00:00]} Nf6 {[%emt 0:00:00]} 2. c4 {[%emt 0:00:05]} e6 {[%emt 0:00:00]} 3. Nf3 {[%emt 0:00:19]} b6 {[%emt 0:00:00]} 4. g3 {[%emt 0:00:34]} Ba6 {[%emt 0:00:00]} 5. Qc2 {[%emt 0:02:55]} c5 {[%emt 0:00:29]} 6. Bg2 {[%emt 0:01:20] LiveBook: 124 Games} Nc6 {[%emt 0:01:23]} 7. dxc5 {[%emt 0:03:08]} Bxc5 {[%emt 0:00:09]} 8. O-O {[%emt 0:00:28]} Rc8 {[%emt 0:00:13]} 9. b3 {[%emt 0:01:07] E15: Queen's Indian: 4 g3 sidelines, 4 g3 Ba6 and 4 g3 Bb7 early deviations} (9. Qa4 Bb7 10. Nc3 O-O 11. Bf4 Qe7 12. a3 Bd6 13. Bxd6 {½-½ (13) Houska,J (2479)-Gusan,B (2500) ICCF email 2009}) 9... d5 {[%emt 0:00:53]} 10. Nbd2 {[%emt 0:13:32]} O-O {[%emt 0:08:47]} 11. Bb2 {[%emt 0:01:48]} dxc4 {[%emt 0:01:08]} 12. Ne4 $146 {[%emt 0:08:15]} ({Predecessor:} 12. Nxc4 Qe7 13. Rfd1 Na5 14. Ng5 Bxf2+ 15. Kf1 Nxc4 16. bxc4 Be3 {0-1 (32) Kraidman,Y (2277)-Siegmund,R (2187) Dresden 2007}) 12... Nb4 {[%emt 0:01:49]} 13. Qb1 {[%emt 0:00:47]} Be7 {[%emt 0:05:45]} 14. Rd1 {[%emt 0:01:58]} Nbd5 {[%emt 0:05:49]} 15. Nfg5 {[%emt 0:07:59]} (15. bxc4 $1 $15 Nxe4 16. cxd5 exd5 17. Nh4) 15... Nxe4 {[%emt 0:00:37]} 16. Nxe4 {[%emt 0:00:23]} Qc7 {[%emt 0:00:58]} 17. Rc1 {[%emt 0:01:44]} Qd7 {[%emt 0:00:22]} 18. Bf3 {[%emt 0:01:52]} Rfd8 {[%emt 0:03:52]} 19. h4 {[%emt 0:08:43]} h6 {[%emt 0:00:05]} 20. Bh5 {[%emt 0:04:01]} (20. Nc3 $17) 20... Bb5 {[%emt 0:01:43]} 21. Rd1 {[%emt 0:08:30]} (21. a4 $17 {was worth a try.} Ba6 22. bxc4 Bxc4 23. Nd2) 21... Qc7 $19 {[%emt 0:03:23]} 22. bxc4 {[%emt 0:15:30]} Qxc4 {[%emt 0:00:46]} 23. Bxg7 {[%emt 0:14:53]} Kxg7 {[%emt 0:00:18]} 24. Qb2+ {[%emt 0:01:28]} Nf6 {[%emt 0:02:25]} 25. Rxd8 {[%emt 0:00:20]} Rxd8 {[%emt 0:00:02]} 26. Bf3 {[%emt 0:00:27]} Qd4 {[%emt 0:00:56]} 0-1

[Event "Bhopal GM Open 2018"]
[Site "Bhopal"]
[Date "2018.12.27"]
[Round "9"]
[White "Parthasarathy, R."]
[Black "Nitin, S.."]
[Result "0-1"]
[ECO "B27"]
[WhiteElo "2019"]
[BlackElo "2450"]
[Annotator "RC"]
[PlyCount "68"]
[EventDate "2018.12.21"]
[EventType "swiss"]
[EventCountry "IND"]
[SourceTitle "playchess.com"]
[Source "ChessBase"]
[SourceQuality "1"]
[TimeControl "5400+30"]

1. e4 {[%emt 0:00:00]} c5 {[%emt 0:00:07]} 2. Nf3 {[%emt 0:00:21]} b6 {[%emt 0:01:35]} 3. c4 {[%emt 0:04:44]} Bb7 {[%emt 0:00:16]} 4. Nc3 {[%emt 0:00:05]} e6 {[%emt 0:00:07]} 5. d4 {[%emt 0:01:39]} cxd4 {[%emt 0:00:09]} 6. Nxd4 {[%emt 0:00:07]} a6 {[%emt 0:00:11]} 7. Be2 {[%emt 0:00:34]} Qc7 {[%emt 0:00:32]} 8. O-O {[%emt 0:00:58]} Nf6 {[%emt 0:00:25]} 9. Qd3 {[%emt 0:03:27]} d6 {[%emt 0:01:38]} 10. f4 {[%emt 0:03:25]} Nbd7 11. b4 {[%emt 0:09:58]} Be7 {[%emt 0:29:08]} 12. f5 {[%emt 0:14:09]} e5 {[%emt 0:01:54]} 13. Nb3 {[%emt 0:01:40]} h6 {[%emt 0:03:37]} 14. Be3 {[%emt 0:02:44]} Rc8 {[%emt 0:00:20]} 15. Rac1 {[%emt 0:10:03]} Qb8 {[%emt 0:00:53]} 16. a3 {[%emt 0:01:40]} O-O {[%emt 0:01:00]} 17. Nd2 {[%emt 0:12:20]} Rfe8 {[%emt 0:01:57]} 18. Nd5 {[%emt 0:01:11]} Bd8 {[%emt 0:02:19]} 19. Bf3 {[%emt 0:09:02]} Bc6 {[%emt 0:00:46]} 20. Nb1 {[%emt 0:01:08]} b5 {[%emt 0:01:06]} 21. Nxf6+ {[%emt 0:03:28]} Nxf6 {[%emt 0:00:14]} 22. c5 {[%emt 0:00:43]} d5 {[%emt 0:03:14]} 23. exd5 {[%emt 0:00:26]} e4 {[%emt 0:00:26]} 24. Bxe4 {[%emt 0:00:39]} Nxe4 {[%emt 0:01:18]} 25. Bf4 {[%emt 0:05:17]} Bc7 {[%emt 0:01:04]} 26. Bxc7 {[%emt 0:03:59]} Qxc7 {[%emt 0:00:03]} 27. dxc6 {[%emt 0:00:06]} Rcd8 {[%emt 0:00:03]} 28. Qf3 {[%emt 0:01:00]} Ng5 {[%emt 0:00:02]} 29. Qf4 {[%emt 0:01:39]} Qxc6 {[%emt 0:00:01]} 30. Nc3 {[%emt 0:00:23]} Rd3 {[%emt 0:00:40]} 31. Rfd1 {[%emt 0:02:16]} Rde3 {[%emt 0:02:25]} 32. Qd6 {[%emt 0:01:49]} Qc8 {[%emt 0:00:06]} 33. Qd7 {[%emt 0:01:29]} Re1+ {[%emt 0:00:04]} 34. Kf2 {[%emt 0:00:35]} Qxd7 {[%emt 0:00:06]} 0-1

[Event "Bhopal GM Open 2018"]
[Site "Bhopal"]
[Date "2018.12.28"]
[Round "10"]
[White "Tran, Tuan Minh"]
[Black "Manik, Mikulas"]
[Result "1-0"]
[ECO "E73"]
[WhiteElo "2524"]
[BlackElo "2410"]
[Annotator "RC"]
[PlyCount "81"]
[EventDate "2018.12.21"]
[EventType "swiss"]
[EventCountry "IND"]
[SourceTitle "playchess.com"]
[Source "ChessBase"]
[SourceQuality "1"]
[TimeControl "5400+30"]

1. d4 {[%emt 0:00:00]} Nf6 {[%emt 0:00:00]} 2. c4 {[%emt 0:00:00]} g6 {[%emt 0:00:00]} 3. Nc3 {[%emt 0:00:03]} Bg7 {[%emt 0:00:00]} 4. e4 {[%emt 0:00:08]} d6 {[%emt 0:00:00]} 5. Be2 {[%emt 0:00:12]} O-O {[%emt 0:00:00]} 6. Be3 {[%emt 0:00:08]} Na6 {[%emt 0:00:02]} 7. Nf3 {[%emt 0:00:10]} c5 {[%emt 0:03:21]} 8. O-O {[%emt 0:00:12]} Bg4 {[%emt 0:11:36]} 9. Qd2 {[%emt 0:10:08]} Nd7 {[%emt 0:04:45]} 10. Rad1 {[%emt 0:03:02]} Nc7 {[%emt 0:12:59]} 11. Rfe1 {[%emt 0:13:24]} Bxf3 {[%emt 0:07:54]} 12. Bxf3 {[%emt 0:00:08]} cxd4 {[%emt 0:05:27]} 13. Bxd4 {[%emt 0:00:06]} Ne5 {[%emt 0:00:08]} 14. Be2 {[%emt 0:00:18]} Ne6 {[%emt 0:00:07]} 15. Be3 {[%emt 0:00:06]} Nc6 {[%emt 0:00:13]} 16. Nd5 {[%emt 0:06:39]} a5 {[%emt 0:13:53]} 17. b3 {[%emt 0:01:57]} Nc5 {[%emt 0:12:02]} 18. f3 {[%emt 0:00:59]} e5 {[%emt 0:04:53]} 19. Nb6 {[%emt 0:08:45]} Qxb6 {[%emt 0:01:13]} 20. Qxd6 {[%emt 0:01:06]} Bh6 {[%emt 0:01:11]} 21. Bf2 {[%emt 0:02:04]} Rfd8 {[%emt 0:01:18]} 22. Qxc5 {[%emt 0:00:23]} Qxc5 {[%emt 0:00:11]} 23. Bxc5 {[%emt 0:00:01]} Nb4 {[%emt 0:00:23]} 24. Rxd8+ {[%emt 0:07:22]} Rxd8 {[%emt 0:00:06]} 25. Bb6 {[%emt 0:00:06]} Rd6 {[%emt 0:02:39]} 26. c5 {[%emt 0:15:08]} Rc6 {[%emt 0:02:05]} 27. Bc4 {[%emt 0:02:29]} Rc8 {[%emt 0:04:23]} 28. Bxa5 {[%emt 0:02:08]} Nc2 {[%emt 0:01:26]} 29. Re2 {[%emt 0:10:45]} Nd4 {[%emt 0:00:45]} 30. Rb2 {[%emt 0:00:04]} Rxc5 {[%emt 0:01:34]} 31. Bb4 {[%emt 0:00:06]} Rc8 {[%emt 0:01:57]} 32. a4 {[%emt 0:00:14]} Kg7 {[%emt 0:01:57]} 33. Kf2 {[%emt 0:00:31]} f5 {[%emt 0:00:03]} 34. a5 {[%emt 0:01:16]} Nc6 {[%emt 0:03:26]} 35. Bc3 {[%emt 0:00:05]} fxe4 {[%emt 0:01:21]} 36. fxe4 {[%emt 0:00:01]} Bg5 {[%emt 0:00:30]} 37. Bd5 {[%emt 0:01:50]} Nd4 {[%emt 0:00:13]} 38. Bb4 {[%emt 0:06:59]} Bc1 {[%emt 0:01:39]} 39. Ra2 {[%emt 0:00:16]} Nc6 {[%emt 0:00:58]} 40. Rc2 {[%emt 0:00:11]} Bg5 {[%emt 0:00:33]} 41. a6 {[%emt 0:00:19]} 1-0

[Event "Bhopal GM Open 2018"]
[Site "Bhopal"]
[Date "2018.12.28"]
[Round "10"]
[White "Deviatkin, Andrei"]
[Black "Nitin Shankar Madhu"]
[Result "1-0"]
[ECO "C68"]
[WhiteElo "2464"]
[BlackElo "2002"]
[Annotator "RC"]
[PlyCount "91"]
[EventDate "2018.12.21"]
[EventType "swiss"]
[EventCountry "IND"]
[SourceTitle "playchess.com"]
[Source "ChessBase"]
[SourceQuality "1"]
[TimeControl "5400+30"]

1. e4 {[%emt 0:02:34]} e5 {[%emt 0:00:00]} 2. Nf3 {[%emt 0:00:05]} Nc6 {[%emt 0:00:00]} 3. Bb5 {[%emt 0:00:03]} a6 {[%emt 0:00:00]} 4. Bxc6 {[%emt 0:00:05]} dxc6 {[%emt 0:00:00]} 5. O-O {[%emt 0:00:04]} f6 {[%emt 0:00:01]} 6. d4 {[%emt 0:00:05]} exd4 {[%emt 0:00:53]} 7. Nxd4 {[%emt 0:00:18]} c5 {[%emt 0:00:24]} 8. Ne2 {[%emt 0:00:30]} Qxd1 {[%emt 0:00:12]} 9. Rxd1 {[%emt 0:00:03]} Bd7 {[%emt 0:01:10]} 10. Be3 {[%emt 0:00:10]} O-O-O {[%emt 0:01:01]} 11. Nbc3 {[%emt 0:00:57]} Bd6 {[%emt 0:08:12]} 12. Bf4 {[%emt 0:00:30]} Bxf4 {[%emt 0:06:44]} 13. Nxf4 {[%emt 0:00:39]} Re8 {[%emt 0:05:40]} 14. f3 {[%emt 0:12:48]} Bc6 {[%emt 0:10:44]} 15. Kf2 {[%emt 0:05:32]} Nh6 {[%emt 0:07:03]} 16. Nh5 {[%emt 0:04:50]} Rhg8 {[%emt 0:00:10]} 17. g4 {[%emt 0:00:39]} Nf7 {[%emt 0:01:37]} 18. Nd5 {[%emt 0:02:17]} Re5 {[%emt 0:08:08]} 19. Nhf4 {[%emt 0:18:03]} Ree8 {[%emt 0:11:33]} 20. c4 {[%emt 0:11:12]} Ne5 {[%emt 0:05:29]} 21. b3 {[%emt 0:00:03]} Rgf8 {[%emt 0:00:05]} 22. Rd2 {[%emt 0:04:57]} Rf7 {[%emt 0:02:23]} 23. h4 {[%emt 0:01:43]} g6 {[%emt 0:00:52]} 24. Re1 {[%emt 0:01:44]} a5 {[%emt 0:02:42]} 25. a4 {[%emt 0:01:05]} Ref8 {[%emt 0:05:05]} 26. Ne6 {[%emt 0:02:21]} Rh8 {[%emt 0:00:04]} 27. Red1 {[%emt 0:04:29]} b6 {[%emt 0:02:14]} 28. Ndxc7 {[%emt 0:00:55]} Rxc7 {[%emt 0:02:11]} 29. Rd8+ {[%emt 0:00:20]} Rxd8 {[%emt 0:00:02]} 30. Rxd8+ {[%emt 0:00:08]} Kb7 {[%emt 0:00:02]} 31. Nxc7 {[%emt 0:00:09]} Kxc7 {[%emt 0:00:02]} 32. Rh8 {[%emt 0:02:38]} Nf7 {[%emt 0:06:11]} 33. Rxh7 {[%emt 0:01:18]} Be8 {[%emt 0:00:02]} 34. Rg7 {[%emt 0:04:06]} Kd6 {[%emt 0:01:16]} 35. Rxg6 {[%emt 0:00:28]} Ke7 {[%emt 0:00:37]} 36. Rg8 {[%emt 0:00:25]} Nd6 {[%emt 0:02:21]} 37. Rh8 {[%emt 0:01:02]} Nf7 {[%emt 0:00:24]} 38. Rh5 {[%emt 0:00:16]} Kf8 {[%emt 0:05:28]} 39. Rd5 {[%emt 0:00:22]} Bc6 {[%emt 0:00:19]} 40. Rd1 {[%emt 0:00:30]} Ke7 {[%emt 0:00:43]} 41. Kg3 {[%emt 0:00:19]} Be8 {[%emt 0:00:11]} 42. Kf4 {[%emt 0:02:38]} Ne5 {[%emt 0:00:38]} 43. g5 {[%emt 0:00:34]} Nxf3 {[%emt 0:01:00]} 44. gxf6+ {[%emt 0:00:21]} Ke6 {[%emt 0:00:01]} 45. Rd8 {[%emt 0:00:25]} Bh5 {[%emt 0:00:27]} 46. Rh8 {[%emt 0:00:34]} 1-0

[Event "Bhopal GM Open 2018"]
[Site "Bhopal"]
[Date "2018.12.28"]
[Round "10"]
[White "Khusenkhojaev, Muhammad"]
[Black "Sri Sai Baswanth P"]
[Result "1-0"]
[ECO "A85"]
[WhiteElo "2455"]
[BlackElo "1921"]
[Annotator "RC"]
[PlyCount "61"]
[EventDate "2018.12.21"]
[EventType "swiss"]
[EventCountry "IND"]
[SourceTitle "playchess.com"]
[Source "ChessBase"]
[SourceQuality "1"]
[TimeControl "5400+30"]

1. d4 {[%emt 0:00:00]} f5 {[%emt 0:02:51]} 2. c4 {[%emt 0:00:14]} Nf6 {[%emt 0:00:04]} 3. Nc3 {[%emt 0:00:18]} e6 {[%emt 0:00:12]} 4. g3 {[%emt 0:00:39]} Be7 {[%emt 0:00:07]} 5. Bg2 {[%emt 0:00:14]} O-O {[%emt 0:00:10]} 6. Nf3 {[%emt 0:00:28]} d6 {[%emt 0:00:23]} 7. O-O {[%emt 0:00:14]} Ne4 {[%emt 0:00:13]} 8. Qc2 {[%emt 0:01:14]} Nxc3 {[%emt 0:00:25]} 9. bxc3 {[%emt 0:00:15]} Nc6 {[%emt 0:00:17]} 10. e4 {[%emt 0:03:46]} e5 {[%emt 0:00:47]} 11. d5 {[%emt 0:00:59]} Na5 {[%emt 0:00:33]} 12. c5 {[%emt 0:00:35]} b6 {[%emt 0:00:17]} 13. c6 {[%emt 0:00:55]} Qe8 {[%emt 0:08:10]} 14. c4 {[%emt 0:05:49]} Qg6 {[%emt 0:09:13]} 15. Ba3 {[%emt 0:01:11]} fxe4 {[%emt 0:04:25]} 16. Nxe5 {[%emt 0:00:40]} Qe8 {[%emt 0:08:22]} 17. Nd7 {[%emt 0:01:10]} Bxd7 {[%emt 0:00:09]} 18. cxd7 {[%emt 0:00:15]} Qxd7 {[%emt 0:00:11]} 19. Bxe4 {[%emt 0:00:14]} Qh3 {[%emt 0:00:40]} 20. c5 {[%emt 0:09:58]} Bf6 {[%emt 0:02:42]} 21. cxd6 {[%emt 0:04:17]} cxd6 {[%emt 0:00:45]} 22. Bxd6 {[%emt 0:00:16]} Rfc8 {[%emt 0:01:33]} 23. Bc7 {[%emt 0:00:14]} Bxa1 {[%emt 0:07:05]} 24. Rxa1 {[%emt 0:00:08]} Rf8 {[%emt 0:01:30]} 25. d6 {[%emt 0:00:40]} Rae8 {[%emt 0:00:24]} 26. Rd1 {[%emt 0:00:44]} Qh5 {[%emt 0:02:15]} 27. Rd5 {[%emt 0:12:26]} Qh6 {[%emt 0:04:29]} 28. d7 {[%emt 0:02:48]} Rxe4 {[%emt 0:03:04]} 29. Qxe4 {[%emt 0:00:20]} Qc1+ {[%emt 0:02:56]} 30. Kg2 {[%emt 0:00:06]} Qxc7 {[%emt 0:00:49]} 31. Qe6+ {[%emt 0:00:09]} 1-0

[Event "Bhopal GM Open 2018"]
[Site "Bhopal"]
[Date "2018.12.28"]
[Round "10"]
[White "Nitin, S.."]
[Black "Anuj Shrivatri"]
[Result "1/2-1/2"]
[ECO "C48"]
[WhiteElo "2450"]
[BlackElo "2357"]
[Annotator "RC"]
[PlyCount "52"]
[EventDate "2018.12.21"]
[EventType "swiss"]
[EventCountry "IND"]
[SourceTitle "playchess.com"]
[Source "ChessBase"]
[SourceQuality "1"]
[TimeControl "5400+30"]

1. Nc3 {[%emt 0:00:07]} Nf6 {[%emt 0:00:06]} 2. e4 {[%emt 0:03:42]} e5 {[%emt 0:00:05]} 3. Nf3 {[%emt 0:01:44]} Nc6 {[%emt 0:00:06]} 4. Bb5 {[%emt 0:00:06]} Bc5 {[%emt 0:00:06]} 5. O-O {[%emt 0:00:09]} O-O {[%emt 0:00:05]} 6. Nxe5 {[%emt 0:00:09]} Nxe5 {[%emt 0:00:04]} 7. d4 {[%emt 0:00:06]} Bd6 {[%emt 0:00:04]} 8. dxe5 {[%emt 0:00:27]} Bxe5 {[%emt 0:00:06]} 9. Bd3 {[%emt 0:00:04]} Re8 {[%emt 0:00:05]} 10. Bg5 {[%emt 0:02:03]} c6 {[%emt 0:00:38]} 11. Qf3 {[%emt 0:11:19]} d6 {[%emt 0:00:07]} 12. h3 {[%emt 0:01:08]} Be6 {[%emt 0:00:48]} 13. a4 {[%emt 0:05:09]} h6 {[%emt 0:08:40]} 14. Bf4 {[%emt 0:06:45]} Nd7 {[%emt 0:04:51]} 15. Be3 {[%emt 0:14:09]} Nc5 {[%emt 0:14:40]} 16. Qh5 {[%emt 0:10:08]} Qa5 {[%emt 0:14:27]} 17. Bxc5 {[%emt 0:16:08]} Qxc5 {[%emt 0:01:00]} 18. Kh1 {[%emt 0:00:07]} Bxc3 {[%emt 0:11:26]} 19. Qxc5 {[%emt 0:00:13]} dxc5 {[%emt 0:00:30]} 20. bxc3 {[%emt 0:00:03]} Rad8 {[%emt 0:00:11]} 21. Rfd1 {[%emt 0:01:44]} Rd7 {[%emt 0:03:29]} 22. a5 {[%emt 0:03:43]} Red8 {[%emt 0:04:04]} 23. Rdb1 {[%emt 0:00:07]} c4 {[%emt 0:09:38]} 24. Bf1 {[%emt 0:00:08]} Rc7 {[%emt 0:00:07]} 25. f4 {[%emt 0:00:25]} f6 {[%emt 0:00:29]} 26. Ra4 {[%emt 0:00:40]} Rd2 {[%emt 0:02:28]} 1/2-1/2

[Event "Bhopal GM Open 2018"]
[Site "Bhopal"]
[Date "2018.12.28"]
[Round "10"]
[White "Nguyen, Van Huy"]
[Black "Sahoo, Utkal Ranjan"]
[Result "1/2-1/2"]
[ECO "A05"]
[WhiteElo "2438"]
[BlackElo "2286"]
[Annotator "RC"]
[PlyCount "25"]
[EventDate "2018.12.21"]
[EventType "swiss"]
[EventCountry "IND"]
[SourceTitle "playchess.com"]
[Source "ChessBase"]
[SourceQuality "1"]
[TimeControl "5400+30"]

1. Nf3 {[%emt 0:00:00]} Nf6 2. c4 {[%emt 0:00:08]} e6 {[%emt 0:00:00]} 3. g3 {[%emt 0:00:21]} d5 {[%emt 0:00:33]} 4. d4 {[%emt 0:00:36]} Bb4+ {[%emt 0:00:14]} 5. Bd2 {[%emt 0:00:31]} Be7 {[%emt 0:00:04]} 6. Bg2 {[%emt 0:00:15]} O-O {[%emt 0:00:10]} 7. O-O {[%emt 0:00:07]} c6 {[%emt 0:00:04]} 8. Qc2 {[%emt 0:00:50]} Nbd7 {[%emt 0:00:28]} 9. Rd1 {[%emt 0:01:16]} b6 {[%emt 0:00:09]} 10. b3 {[%emt 0:00:38]} Ba6 {[%emt 0:00:11]} 11. a4 {[%emt 0:00:33]} c5 {[%emt 0:00:25]} 12. a5 {[%emt 0:01:55]} Qc8 {[%emt 0:00:52]} 13. cxd5 {[%emt 0:04:56]} 1/2-1/2